{"text_format":"1","workbook":"xlsx","n_sheets":13,"sheets":["Gráfico1","Est. Gral","V.V","Auto.","Gpo. Vul.","Salt.","Torr.","PN","Mva.","Acu.","Sab.","Solicitudes de Inter.","Hoja1"],"not_rendered":{"charts":2,"images":6,"macros":0,"external_links":0,"defined_names":1,"comments":0,"pivot_tables":0},"unopened":[{"sheet":"Gráfico1","index":0,"reason":"not_a_worksheet"}],"bounds":{"document_bytes":16777216,"sheet_cells":100000,"rows_first":2000,"rows_last":500,"rows_between":2000,"halvings":0,"cell_chars":16384,"cell_head_chars":4096},"cells_cut":0,"cells_raw":0,"read":"whole","date_system":"1900"}

{"sheet":"Est. Gral","index":1,"n_rows":243,"n_cols":20,"rows_kept":243,"cut":false,"hidden":false,"merged":[[0,2,0,9],[1,2,1,9],[2,2,2,9],[3,2,3,9],[109,2,109,9],[212,2,212,9],[213,2,213,9],[162,2,162,9],[11,0,31,0],[55,2,55,9],[54,2,54,9],[108,2,108,9],[161,2,161,9]]}
[null,null,"Comisión de los Derechos Humanos del Estado de Coahuila de Zaragoza "]
[null,null,"Visitaduría General "]
[null,null,2014]
[]
[null,"Visitadurías Regionales ","Saltillo ","Torreón ","Piedras Negras ","Monclova ","Acuña ","Sabinas ","Parras","TOTAL "]
[null,"Asesorías ",1192,3403,795,1369,270,28,24,{"$f":"SUM(C6:I6)","v":7081}]
[null,"Gestorías ",0,0,0,0,0,0,0,{"$f":"SUM(C7:I7)","v":0}]
[null,"Quejas 2014",{"$f":"SUM(C9:C10)","v":460},{"$f":"SUM(D9:D10)","v":469},188,278,87,73,20,1575,null,null,null,null,null," "]
[null,"Admitidas ",382,421,164,227,79,67,19,{"$f":"SUM(C9:I9)","v":1359}]
[null,"Remisiones CNDH",78,48,24,51,8,6,1,216]
[null,"Concluidas 2014",{"$f":"SUM(C12,C13,C14, C15,C16,C17,C18,C19,C20,C21,C22,C23,C24,C25,C26,C27,C28,C29)","v":382},{"$f":"SUM(D12:D29)","v":421},164,227,79,67,19,1359]
["                                     Causas de Conclusión ","Incompetencia",6,14,3,3,2,0,null,28]
[null,"Falta de interés ",120,113,33,44,26,8,2,346]
[null,"Conciliación ",14,56,5,1,null,3,3,82]
[null,"Acumulación ",13,4,9,25,null,2,null,{"$f":"SUM(C15:H15)","v":53}]
[null,"No se acreditan los hechos ",64,77,15,1,16,18,2,{"$f":"SUM(C16:I16)","v":193}]
[null,"Resueltas durante el procedimiento ",26,43,22,112,2,3,3,{"$f":"SUM(C17:I17)","v":211}]
[null,"Desistimiento ",37,42,28,17,15,8,5,{"$f":"SUM(C18:I18)","v":152}]
[null,"Sin materia ",9,1,null,3,3,1,null,{"$f":"SUM(C19:H19)","v":17}]
[null,"Acuerdo de no responsabilidad ",null,5,null,null,null,2,null,{"$f":"SUM(C20:I20)","v":7}]
[null,"No localizacion ",16,10,13,null,1,1,null,{"$f":"SUM(C21:H21)","v":41}]
[null,"Extemporanea",1,null,null,null,null,null,null,{"$f":"SUM(C22:H22)","v":1}]
[null,"Improcedente",4,5,null,null,null,null,null,{"$f":"SUM(C23:H23)","v":9}]
[null,"No aclaración",null,2,null,null,null,null,null,{"$f":"SUM(D24:H24)","v":2}]
[null,"No Ratificación",26,21,null,null,null,null,null,{"$f":"SUM(C25:I25)","v":47}]
[null,"Hechos no violatorios ",5,null,3,null,null,null,null,{"$f":"SUM(C26:I26)","v":8}]
[null,"Recomendaciones 2016 de exp. 2014",16,8,12,null,2,null,2,{"$f":"SUM(C27:I27)","v":40}]
[null,"Recomendaciones 2015 de exp. 2014",13,10,9,7,9,13,2,{"$f":"SUM(C28:I28)","v":63}]
[null,"Recomendaciones 2014",12,10,12,14,3,8,null,{"$f":"SUM(C29:H29)","v":59}]
[null,"Tramite 2014",0,{"$f":"SUM(D8-D10-D11)","v":0},0,0,0,0,0,0]
[null,"Recomendaciones 2014 de exp. 2011",2,null,1,null,null,null,null,{"$f":"SUM(C31:I31)","v":3}]
[null,"Recomendaciones 2014 de exp. 2012",11,8,null,null,null,null,null,{"$f":"SUM(C32:I32)","v":19}]
[null,"Recomendaciones 2014 de exp. 2013",32,10,4,2,8,2,null,{"$f":"SUM(C33:I33)","v":58}]
[null,"134 recomendaciones emitidas en el 2014"]
[]
[]
[]
[]
[]
[]
[]
[]
[]
[]
[]
[]
[]
[]
[]
[]
[]
[]
[]
[]
[null,null,"Comisión de los Derechos Humanos del Estado de Coahuila de Zaragoza "]
[null,null,"Visitaduría General "]
[null,null,null,null,null,2015]
[]
[]
[null,"Visitadurías Regionales ","Saltillo ","Torreón ","Piedras Negras ","Monclova ","Acuña ","Sabinas ","Parras","TOTAL "]
[null,"Asesorías ",1007,3792,972,893,385,84,164,{"$f":"SUM(C61:I61)","v":7297}]
[null,"Gestorías ",28,null,null,null,null,null,null,{"$f":"SUM(C62:I62)","v":28}]
[null,"QUEJAS 2015",{"$f":"SUM(C64:C65)","v":430},{"$f":"SUM(D64:D65)","v":511},{"$f":"SUM(E64:E65)","v":226},282,104,73,61,1687]
[null,"Admitidas ",355,489,201,243,88,71,56,{"$f":"SUM(C64:I64)","v":1503}]
[null,"Remisiones CNDH",75,22,25,39,16,2,5,184]
[null,"Concluidas 2015",{"$f":"SUM(C67:C84)","v":354},{"$f":"SUM(D67:D84)","v":489},196,{"$f":"SUM(F67:F84)","v":243},88,71,56,1497]
[null,"Incompetencia",4,16,7,0,3,3,1,34]
[null,"Falta de interés ",115,109,44,52,35,18,9,382]
[null,"Conciliación ",4,117,15,1,8,6,19,170]
[null,"Acumulación ",8,3,13,26,4,2,2,58]
[null,"No se acreditan los hechos ",65,35,54,1,12,14,8,{"$f":"SUM(C71:I71)","v":189}]
[null,"Resueltas durante el procedimiento ",23,51,12,137,9,6,4,242]
[null,"Desistimiento ",34,61,22,9,6,4,8,144]
[null,"Sin materia ",20,4,4,8,null,null,1,37]
[null,"Acuerdo de no responsabilidad ",15,null,null,null,null,null,null,15]
[null,"No localizacion ",17,15,7,4,3,1,2,49]
[null,"Extemporanea"]
[null,"Improcedente",3,17,null,null,null,1,null,{"$f":"SUM(C78:I78)","v":21}]
[null,"No aclaración",2,4,1,null,1,5,null,13]
[null,"No Ratificación",6,50,6,null,null,null,null,62]
[null,"Hechos no violatorios ",10,null,null,null,1,1,1,13]
[null,"Por atracción CNDH",2,null,1,null,null,null,null,3]
[null,"Recomendaciones 2016 de exp. 2015.",4,5,1,2,4,8,null,{"$f":"SUM(C83:I83)","v":24}]
[null,"Recomendaciones 2015",22,2,9,3,2,2,1,41]
[null,"Trámite 2015",{"$f":"SUM(C63-C65-C66)","v":1},{"$f":"SUM(D63-D65-D66)","v":0},{"$f":"SUM(E63-E65-E66)","v":5},0,0,0,0,6]
[null,"Trámite Total",{"$f":"SUM(C7+C9-C11+C85)","v":1},{"$f":"SUM(D7+D9-D11+D85)","v":0},{"$f":"SUM(E7+E9-E11+E85)","v":5},0,{"$f":"SUM(G7+G9-G11+G85)","v":0},{"$f":"SUM(H7+H9-H11+H85)","v":0},{"$f":"SUM(I7+I9-I11+I85)","v":0},{"$f":"SUM(J7+J9-J11+J85)","v":6}]
[null,"Recomendaciones de exp. 2014 emitidas en 2015",12,8,6,7,8,11,0,{"$f":"SUM(C87:I87)","v":52}]
[null,"Recomendaciones de exp.2013 emitidas en 2015",6,9,0,1,null,null,null,{"$f":"SUM(C88:I88)","v":16}]
[]
[]
[]
[]
[]
[]
[]
[]
[]
[]
[]
[]
[]
[]
[]
[]
[]
[]
[]
[]
[null,null,"Comisión de los Derechos Humanos del Estado de Coahuila de Zaragoza "]
[null,null,"Visitaduría General "]
[null,null,null,null,null,2016]
[]
[null,null,null,null,null,null,null,null,null,null,null,null,null,null,null,null,null,null,null,"_"]
[null,"Visitadurías Regionales ","Saltillo ","Torreón ","Piedras Negras ","Monclova ","Acuña ","Sabinas ","Parras","TOTAL "]
[null,"Asesorías ",943,3207,669,648,321,207,165,{"$f":"SUM(C115:I115)","v":6160}]
[null,"Gestorías ",34,3,null,null,1,1,null,{"$f":"SUM(C116:I116)","v":39}]
[null,"QUEJAS 2016",{"$f":"SUM(C118:C119)","v":402},422,186,341,219,98,54,{"$f":"SUM(C117:I117)","v":1722}]
[null,"Admitidas ",338,417,171,295,195,96,51,{"$f":"SUM(C118:I118)","v":1563}]
[null,"Remisiones ",64,5,15,46,24,2,3,{"$f":"SUM(C119:I119)","v":159}]
[null,"Concluidas 2016",{"$f":"SUM(C121:C137)","v":318},410,147,295,195,96,51,1512]
[null,"Incompetencia",5,17,3,null,11,4,1,{"$f":"SUM(C121:I121)","v":41}]
[null,"Falta de interés ",46,59,13,2,17,7,3,147]
[null,"Conciliación ",8,124,2,null,8,4,25,171]
[null,"Acumulación ",null,2,4,12,4,1,null,23]
[null,"No se acreditan los hechos ",124,49,73,84,85,30,11,456]
[null,"Resueltas durante el procedimiento ",51,44,2,170,25,12,3,307]
[null,"Desistimiento ",27,59,19,9,20,17,5,156]
[null,"Sin materia ",9,7,null,2,1,null,null,19]
[null,"Acuerdo de no responsabilidad ",7,null,null,null,null,null,null,7]
[null,"No localizacion ",16,12,13,null,15,3,1,{"$f":"SUM(C130:I130)","v":60}]
[null,"Extemporanea"]
[null,"Improcedente",4,5,null,null,null,2,null,{"$f":"SUM(C132:I132)","v":11}]
[null,"No aclaración",null,1,null,null,null,5,null,6]
[null,"No Ratificación",1,17,3,null,null,null,null,21]
[null,"Hechos no violatorios ",3,1,null,null,1,3,1,9]
[null,"Por atracción CNDH",2,1,null,null,null,null,null,3]
[null,"Recomendaciones 2016",15,12,15,16,8,8,1,75]
[null,"Trámite 2016",{"$f":"SUM(C117-C119-C120)","v":20},{"$f":"SUM(D117-D119-D120)","v":7},{"$f":"SUM(E117-E119-E120)","v":24},0,0,0,0,51]
[null,"Trámite Total 2016",{"$f":"SUM(C30+C85+C138)","v":21},7,29,0,0,0,0,57]
[null,"Recomendaciones 2015",15,null,1,2,null,null,null,{"$f":"SUM(C140:I140)","v":18}]
[null,"Recomendaciones de exp. 2014 emitidas en 2015",12,8,6,7,8,11,0,{"$f":"SUM(C141:I141)","v":52}]
[null,"Recomendaciones de exp.2013 emitidas en 2015",6,9,0,1,null,null,null,{"$f":"SUM(C142:I142)","v":16}]
[null,"Recomendaciones de exp.2013 emitidas en 2016",1,null,null,null,null,null,null,1]
[]
[]
[]
[]
[]
[]
[]
[]
[]
[]
[]
[]
[]
[]
[]
[]
[]
[]
[null,null,"Comisión de los Derechos Humanos del Estado de Coahuila de Zaragoza "]
[null,null,"Visitaduría General "]
[null,null,null,null,null,2017]
[]
[]
[null,"Visitadurías Regionales ","Saltillo ","Torreón ","Piedras Negras ","Monclova ","Acuña ","Sabinas ","Parras","TOTAL "]
[null,"Asesorías ",1106,1304,874,839,1134,644,132,{"$f":"SUM(C168:I168)","v":6033}]
[null,"Gestorías ",35,30,1,9,3,23,3,{"$f":"SUM(C169:I169)","v":104}]
[null,"QUEJAS 2017",{"$f":"SUM(C171:C172)","v":331},432,217,313,170,83,68,{"$f":"SUM(C170:I170)","v":1614}]
[null,"Admitidas ",288,426,206,276,147,82,64,{"$f":"SUM(C171:I171)","v":1489}]
[null,"Remisiones ",43,6,11,37,23,1,4,{"$f":"SUM(C172:I172)","v":125}]
[null,"Concluidas 2017",{"$f":"SUM(C174:C190)","v":203},376,105,261,98,32,39,1113]
[null,"Incompetencia",9,16,3,7,4,2,1,{"$f":"SUM(C174:I174)","v":42}]
[null,"Falta de interés ",10,26,null,2,null,null,null,38]
[null,"Conciliación ",23,98,5,1,null,null,15,142]
[null,"Acumulación ",9,1,1,44,3,1,null,59]
[null,"No se acreditan los hechos ",86,132,39,103,45,12,11,428]
[null,"Resueltas durante el procedimiento ",15,32,2,75,14,4,3,145]
[null,"Desistimiento ",28,35,24,7,14,3,3,114,null,null,null,null,null,null,null,null,null," "]
[null,"Sin materia ",5,4,null,4,2,null,3,18]
[null,"Acuerdo de no responsabilidad ",null,null,null,null,null,1]
[null,"No localizacion ",5,6,18,1,13,1,null,{"$f":"SUM(C183:I183)","v":44}]
[null,"Extemporanea"]
[null,"Improcedente",2,3,null,1,null,null,null,{"$f":"SUM(C185:I185)","v":6}]
[null,"No aclaración",null,1,null,null,null,null,null,1]
[null,"No Ratificación",2,15,2,1,null,3,1,24]
[null,"Hechos no violatorios ",1,1,null,1,null,null,null,3]
[null,"Por atracción CNDH",null,null,null,null,null,null,null,0]
[null,"Recomendaciones 2017",8,6,11,14,3,5,2,49]
[null,"Trámite 2017",{"$f":"SUM(C170-C172-C173)","v":85},{"$f":"SUM(D170-D172-D173)","v":50},{"$f":"SUM(E170-E172-E173)","v":101},15,49,50,25,376]
[null,"Trámite Total 2017",{"$f":"SUM(C30+C85+C138+C191)","v":106},57,130,15,49,50,25,433]
[null,"Recomendaciones de Expedientes 2014 en 2017 = 4"]
[null,"Recomendaciones de Expedientes 2015 en 2017 = 23"]
[null,"Recomendaciones de Expedientes 2016 en 2017 = 27"]
[]
[]
[]
[]
[]
[]
[]
[]
[]
[]
[]
[]
[]
[]
[]
[]
[]
[null,null,"Comisión de los Derechos Humanos del Estado de Coahuila de Zaragoza "]
[null,null,"Visitaduría General "]
[null,null,null,null,null,2018]
[]
[]
[null,"Visitadurías Regionales ","Saltillo ","Torreón ","Piedras Negras ","Monclova ","Acuña ","Sabinas ","Parras","TOTAL "]
[null,"Asesorías ",570,685,415,515,557,523,29,{"$f":"SUM(C219:I219)","v":3294}]
[null,"Gestorías ",3,null,null,7,null,null,null,{"$f":"SUM(C220:I220)","v":10}]
[null,"QUEJAS 2018",186,264,132,146,109,59,33,{"$f":"SUM(C221:I221)","v":929}]
[null,"Admitidas ",163,262,125,121,98,55,32,{"$f":"SUM(C222:I222)","v":856}]
[null,"Remisiones ",23,2,7,24,11,4,1,{"$f":"SUM(C223:I223)","v":72}]
[null,"Concluidas 2018",{"$f":"SUM(C225:C241)","v":70},{"$f":"SUM(D225:D241)","v":100},{"$f":"SUM(E225:E241)","v":19},31,13,{"$f":"SUM(H225:H241)","v":16},10,259]
[null,"Incompetencia",4,13,9,6,3,null,1,{"$f":"SUM(C225:I225)","v":36}]
[null,"Falta de interés ",null,null,null,null,null,null,null,0]
[null,"Conciliación ",28,33,null,null,null,2,2,65]
[null,"Acumulación ",3,null,null,1,2,4,7,17]
[null,"No se acreditan los hechos ",16,23,2,5,null,4,null,50]
[null,"Resueltas durante el procedimiento ",5,13,null,14,7,1,null,40]
[null,"Desistimiento ",8,7,6,2,1,4,null,28]
[null,"Sin materia ",2,1,null,null,null,null,null,3]
[null,"Acuerdo de no responsabilidad ",null,2,null,null,null,null,null,2]
[null,"No localizacion ",null,2,1,null,null,null,null,{"$f":"SUM(C234:I234)","v":3}]
[null,"Extemporanea"]
[null,"Improcedente",3,null,null,3,null,null,null,{"$f":"SUM(C236:I236)","v":6}]
[null,"No aclaración",null,1,null,null,null,null,null,1]
[null,"No Ratificación",1,5,1,null,null,1,null,8]
[null,"Hechos no violatorios ",null,null,null,null,null,null,null,0]
[null,"Por atracción CNDH",null,null,null,null,null,null,null,0]
[null,"Recomendaciones 2016",null,null,null,null,null,null,null,0]
[null,"Trámite 2018",{"$f":"SUM(C221-C223-C224)","v":93},{"$f":"SUM(D221-D223-D224)","v":162},{"$f":"SUM(E221-E223-E224)","v":106},91,85,{"$f":"SUM(H221-H223-H224)","v":39},22,598]
[null,"Trámite Total 2018",{"$f":"SUM(C85+C138+C191+C242)","v":199},{"$f":"SUM(D85+D138+D191+D242)","v":219},236,106,134,{"$f":"SUM(H85+H138+H191+H242)","v":89},47,1031]

{"sheet":"V.V","index":2,"n_rows":31,"n_cols":8,"rows_kept":31,"cut":false,"hidden":false,"merged":[[0,1,0,7],[1,1,1,7],[2,1,2,7]]}
[null,"Comisión de los Derechos Humanos del Estado de Coahuila de Zaragoza "]
[null,"Visitaduría General "]
[null,"Estadística Enero "]
[]
["Voces de Violación","Saltillo ","Torreón ","Piedras Negras ","Monclova ","Acuña ","Sabinas ","TOTAL "]
["Detencion arbitraria "]
["Prest. Indeb. De Serv. Púb."]
["Trato cruel, Inhumano o dregradante "]
["Lesiones"]
["Allanamiento "]
["Irregularidad en la Integ. De la Averig. Previa Penal"]
["Robo "]
["Ej. Inde. Fza. Púb."]
["Derecho a la Edución "]
["Amenazas "]
["Dilación en Proc. De Just."]
["Derecho a la Salud "]
["Falsas acusación "]
["Incump. Inadecuado de la negativa pública en mat. De procuración"]
["Intimidación "]
["Derechos de los Niños "]
["Derecho de la Petición "]
["Desaparición Forzada "]
["Denegación de Justicia "]
["Discapacidad "]
["Discriminación "]
["Incomunicación "]
["D. menores a que se prosesa su integridad "]
["Tortura "]
["Retención ilegal "]
["Otros "]

{"sheet":"Auto.","index":3,"n_rows":14,"n_cols":8,"rows_kept":14,"cut":false,"hidden":false,"merged":[[0,1,0,7],[1,1,1,7],[2,1,2,7]]}
[null,"Comisión de los Derechos Humanos del Estado de Coahuila de Zaragoza "]
[null,"Visitaduría General "]
[null,"Estadística Enero - Noviembre 2013"]
[]
["Autoridades ","Saltillo ","Torreón ","Piedras Negras ","Monclova ","Acuña ","Sabinas ","TOTAL "]
["Policía Preventiva Municipal "]
["PGJE "]
["SSP-CES"]
["Secretaría de Edu."]
["Procuraduría de la Fam."]
["Secretaría de Salud"]
["Dir. Reinserción Estatales  "]
["Otros Autoridades Estatales "]
["Otros Autoridades Municipales "]

{"sheet":"Gpo. Vul.","index":4,"n_rows":18,"n_cols":8,"rows_kept":18,"cut":false,"hidden":false,"merged":[[0,1,0,7],[1,1,1,7],[2,1,2,7]]}
[null,"Comisión de los Derechos Humanos del Estado de Coahuila de Zaragoza "]
[null,"Visitaduría General "]
[null,"Estadística Noviembre 2013"]
[]
["Autoridades ","Saltillo ","Torreón ","Piedras Negras ","Monclova ","Acuña ","Sabinas ","TOTAL "]
["Mujer"]
["Hombre"]
["Niños"]
["Jóvenes"]
["Adultos Mayores"]
["Personas con discapacidad"]
["Servidores Públicos"]
["Migrantes"]
["Preferencial Sexual Diferente"]
["Indígenas"]
["Interno"]
["Defensor Civil de D.H"]
["Periódista"]

{"sheet":"Salt.","index":5,"n_rows":75,"n_cols":33,"rows_kept":75,"cut":false,"hidden":false,"merged":[[0,1,0,20],[61,0,61,32],[1,1,1,7],[2,1,2,7],[24,0,24,32],[51,0,51,32]]}
[null,"Comisión de los Derechos Humanos del Estado de Coahuila de Zaragoza "]
[null,"Visitaduría General "]
[null,"Estadística Diciembre 2013"]
[]
["Visitadurías Regionales ","Saltillo ",1,2,3,4,5,6,7,8,9,10,11,12,13,14,15,16,18,19,20,21,22,23,24,25,26,27,28,29,30,31]
["Asesorías ",{"$f":"SUM(C6:AG6)","v":0}]
["Gestorías ",{"$f":"SUM(C7:AG7)","v":0}]
["Quejas 2013",{"$f":"SUM(B9:B10)","v":0}]
["Admitidas ",0]
["Remisiones CNDH",{"$f":"SUM(C10:AG10)","v":0}]
["Concluidas ",{"$f":"SUM(C11:AG11)","v":0}]
["Incompetencia",{"$f":"SUM(C12:AG12)","v":0}]
["Falta de interés ",0]
["Conciliación ",0]
["Acumulación ",0]
["No se acreditan los hechos ",0]
["Resueltas durante el procedimiento ",0]
["Desistimiento ",0]
["Sin materia ",0]
["Acuerdo de no responsabilidad ",0]
["No localizacion ",0]
["Hechos no violatorios ",0]
["Recomendaciones ",0]
["Trámite ",0,{"$f":"C9-C11","v":0},0,0,0,0,0,0,0,0,0,0,0,0,0,0,0,0,0,0,0,0,0,0,0,0,0,0,0,0,0,0]
["Voces de Violación"]
["Detencion arbitraria ",{"$f":"SUM(C26:AG26)","v":0}]
["Prest. Indeb. De Serv. Púb.",0]
["Trato cruel, Inhumano o dregradante ",0]
["Lesiones",0]
["Allanamiento ",0]
["Irregularidad en la Integ. De la averig. Previa Penal",0]
["Robo ",0]
["Ej. Inde. Fza. Púb.",0]
["Derecho a la Edución ",0]
["Amenazas ",0]
["Dilación en Proc. De Just.",0]
["Derecho a la Salud ",0]
["Falsas acusación ",0]
["Incump. Inadecuado de la negativa pública en mat. De procuración",0]
["Intimidación ",0]
["Derechos de los Niños ",0]
["Derecho de la Petición ",2,null,null,null,1,1]
["Desaparición Forzada ",0]
["Denegación de Justicia ",0]
["Discapacidad ",0]
["Discriminación ",0]
["Incomunicación ",0]
["D. menores a que se procesa su integridad ",0]
["Tortura ",0]
["Retención ilegal ",0]
["Otros ",{"$f":"SUM(C51:AG51)","v":0}]
["Autoridades"]
["Policía Preventiva Municipal ",{"$f":"SUM(C53:AG53)","v":0}]
["PGJE ",0]
["SSP-CES",0]
["Secretaría de Edu.",0]
["Procuraduría de la Fam.",0]
["Secretaría de Salud",0]
["Dir. Reinserción Estatales  ",0]
["Otros Autoridades Estatales ",0]
["Otros Autoridades Municipales ",0]
["Grupo Vulnerable"]
["Mujer",{"$f":"SUM(C63:AG63)","v":0}]
["Hombre",0]
["Niños",0]
["Jóvenes",0]
["Adultos Mayores",0]
["Personas con discapacidad",0]
["Servidores Públicos",0]
["Migrantes",0]
["Preferencial Sexual Diferente",0]
["Indígenas",{"$f":"SUM(C72:AG72)","v":0}]
["Interno",{"$f":"SUM(C73:AG73)","v":0}]
["Defensor Civil de D.H",{"$f":"SUM(C74:AG74)","v":0}]
["Periódista",{"$f":"SUM(C75:AG75)","v":0}]

{"sheet":"Torr.","index":6,"n_rows":75,"n_cols":33,"rows_kept":75,"cut":false,"hidden":false,"merged":[[0,1,0,20],[61,0,61,32],[1,1,1,7],[2,1,2,7],[24,0,24,32],[51,0,51,32]]}
[null,"Comisión de los Derechos Humanos del Estado de Coahuila de Zaragoza "]
[null,"Visitaduría General "]
[null,"Estadística Diciembre 2013"]
[]
["Visitadurías Regionales ","Torreón",1,2,3,4,5,6,7,8,9,10,11,12,13,14,15,16,17,18,19,20,21,22,23,24,25,26,27,28,29,30,31]
["Asesorías ",{"$f":"SUM(C6:AG6)","v":22},null,13,9]
["Gestorías ",{"$f":"SUM(C7:AG7)","v":0}]
["Quejas 2013",11,{"$f":"C9+C10","v":0},{"$f":"D9+D10","v":1},{"$f":"E9+E10","v":10}]
["Admitidas ",11,null,1,10]
["Remisiones CNDH",0]
["Concluidas ",{"$f":"SUM(C11:AG11)","v":0},{"$f":"SUM(C12:C23)","v":0},{"$f":"SUM(D12:D23)","v":0},{"$f":"SUM(E12:E23)","v":0}]
["Incompetencia",{"$f":"SUM(C12:AG12)","v":0}]
["Falta de interés ",0]
["Conciliación ",0]
["Acumulación ",0]
["No se acreditan los hechos ",0]
["Resueltas durante el procedimiento ",0]
["Desistimiento ",0]
["Sin materia ",0]
["Acuerdo de no responsabilidad ",0]
["No localizacion ",0]
["Hechos no violatorios ",0]
["Recomendaciones ",0]
["Trámite ",11,{"$f":"C9-C11","v":0},{"$f":"D9-D11","v":1},{"$f":"E9-E11","v":10}]
["Voces de Violación"]
["Detencion arbitraria ",{"$f":"SUM(C26:AG26)","v":1},null,null,1]
["Prest. Indeb. De Serv. Púb.",5,null,1,4]
["Trato cruel, Inhumano o dregradante ",2,null,null,2]
["Lesiones",0]
["Allanamiento ",0]
["Irregularidad en la Integ. De la averig. Previa Penal",2,null,null,2]
["Robo ",1,null,null,1]
["Ej. Inde. Fza. Púb.",0]
["Derecho a la Edución ",0]
["Amenazas ",0]
["Dilación en Proc. De Just.",2,null,null,2]
["Derecho a la Salud ",0]
["Falsas acusación ",1,null,null,1]
["Incump. Inadecuado de la negativa pública en mat. De procuración",0]
["Intimidación ",0]
["Derechos de los Niños ",0]
["Derecho de la Petición ",0]
["Desaparición Forzada ",0]
["Denegación de Justicia ",1,null,null,1]
["Discapacidad ",0]
["Discriminación ",0]
["Incomunicación ",0]
["D. menores a que se procesa su integridad ",0]
["Tortura ",0]
["Retención ilegal ",0]
["Otros ",6,null,1,5]
["Autoridades"]
["Policía Preventiva Municipal ",{"$f":"SUM(C53:AG53)","v":1},null,null,1]
["PGJE ",7,null,null,7]
["SSP-CES",1,null,null,1]
["Secretaría de Edu.",0]
["Procuraduría de la Fam.",0]
["Secretaría de Salud",0]
["Dir. Reinserción Estatales  ",1,null,null,1]
["Otros Autoridades Estatales ",2,null,null,2]
["Otros Autoridades Municipales ",1,null,1]
["Grupo Vulnerable"]
["Mujer",{"$f":"SUM(C63:AG63)","v":1},null,null,1]
["Hombre",6,null,1,5]
["Niños",0]
["Jóvenes",0]
["Adultos Mayores",0]
["Personas con discapacidad",0]
["Servidores Públicos",0]
["Migrantes",0]
["Preferencial Sexual Diferente",0]
["Indígenas",0]
["Interno",2,null,null,2]
["Defensor Civil de D.H",2,null,null,2]
["Periódista",0]

{"sheet":"PN","index":7,"n_rows":75,"n_cols":33,"rows_kept":75,"cut":false,"hidden":false,"merged":[[0,1,0,20],[61,0,61,32],[1,1,1,7],[2,1,2,7],[24,0,24,32],[51,0,51,32]]}
[null,"Comisión de los Derechos Humanos del Estado de Coahuila de Zaragoza "]
[null,"Visitaduría General "]
[null,"Estadística Diciembre 2013"]
[]
["Visitadurías Regionales ","Piedras Nedras",1,2,3,4,5,6,7,8,9,10,11,12,13,14,15,16,17,18,19,20,21,22,23,24,25,26,27,28,29,30,31]
["Asesorías ",{"$f":"SUM(C6:AG6)","v":20},null,4,0,null,null,null,null,null,null,null,null,null,null,null,null,null,null,7,4,5]
["Gestorías ",{"$f":"SUM(C7:AG7)","v":0}]
["Quejas 2013",5,{"$f":"C9+C10","v":0},{"$f":"D9+D10","v":2},0,0,0,0,0,0,0,0,0,0,0,0,0,0,0,0,0,0,0,0,3,0,0,0,0,0,0,0,0]
["Admitidas ",5,null,2,null,null,null,null,null,null,null,null,null,null,null,null,null,null,null,null,null,null,null,null,3]
["Remisiones CNDH",0]
["Concluidas ",{"$f":"SUM(C11:AG11)","v":0},{"$f":"SUM(C12:C23)","v":0},{"$f":"SUM(D12:D23)","v":0},0,0,0,0,0,0,0,0,0,0,0,0,0,0,0,0,0,0,0,0,0,0,0,0,0,0,0,0,0]
["Incompetencia",{"$f":"SUM(C12:AG12)","v":0}]
["Falta de interés ",0]
["Conciliación ",0]
["Acumulación ",0]
["No se acreditan los hechos ",0]
["Resueltas durante el procedimiento ",0]
["Desistimiento ",0]
["Sin materia ",0]
["Acuerdo de no responsabilidad ",0]
["No localizacion ",0]
["Hechos no violatorios ",0]
["Recomendaciones ",0]
["Trámite ",5,{"$f":"C9-C11","v":0},2,0,0,0,0,0,0,0,0,0,0,0,0,0,0,0,0,0,0,0,0,3,0,0,0,0,0,0,0,0]
["Voces de Violación"]
["Detencion arbitraria ",{"$f":"SUM(C26:AG26)","v":0}]
["Prest. Indeb. De Serv. Púb.",0]
["Trato cruel, Inhumano o dregradante ",0]
["Lesiones",0]
["Allanamiento ",0]
["Irregularidad en la Integ. De la averig. Previa Penal",0]
["Robo ",0]
["Ej. Inde. Fza. Púb.",0]
["Derecho a la Edución ",1,null,1]
["Amenazas ",0]
["Dilación en Proc. De Just.",0]
["Derecho a la Salud ",0]
["Falsas acusación ",0]
["Incump. Inadecuado de la negativa pública en mat. De procuración",0]
["Intimidación ",0]
["Derechos de los Niños ",0]
["Derecho de la Petición ",0]
["Desaparición Forzada ",0]
["Derecho a la Seguridad Jurídica",1,null,1]
["Discapacidad ",0]
["Discriminación ",0]
["Incomunicación ",0]
["D. menores a que se procesa su integridad ",0]
["Tortura ",0]
["Retención ilegal ",0]
["Otros ",0]
["Autoridades"]
["Policía Preventiva Municipal ",{"$f":"SUM(C53:AG53)","v":0}]
["PGJE ",1,null,1]
["SSP-CES",0]
["Secretaría de Edu.",1,null,1]
["Procuraduría de la Fam.",0]
["Secretaría de Salud",0]
["Dir. Reinserción Estatales  ",0]
["Otros Autoridades Estatales ",0]
["Otros Autoridades Municipales ",0]
["Grupo Vulnerable"]
["Mujer",{"$f":"SUM(C63:AG63)","v":0}]
["Hombre",1,null,1]
["Niños",0]
["Jóvenes",2,null,2]
["Adultos Mayores",0]
["Personas con discapacidad",0]
["Servidores Públicos",0]
["Migrantes",0]
["Preferencial Sexual Diferente",0]
["Indígenas",0]
["Interno",0]
["Defensor Civil de D.H",0]
["Periódista",0]

{"sheet":"Mva.","index":8,"n_rows":75,"n_cols":33,"rows_kept":75,"cut":false,"hidden":false,"merged":[[0,1,0,20],[61,0,61,32],[1,1,1,7],[2,1,2,7],[24,0,24,32],[51,0,51,32]]}
[null,"Comisión de los Derechos Humanos del Estado de Coahuila de Zaragoza "]
[null,"Visitaduría General "]
[null,"Estadística Diciembre 2013"]
[]
["Visitadurías Regionales ","Monclova",1,2,3,4,5,6,7,8,9,10,11,12,13,14,15,16,17,18,19,20,21,22,23,24,25,26,27,28,29,30,31]
["Asesorías ",{"$f":"SUM(C6:AG6)","v":107},null,7,6,5,6,8,null,null,5,4,4,5,6,null,null,7,6,5,9,13,null,null,3,2,null,4,2]
["Gestorías ",0]
["Quejas 2013",13,{"$f":"C9+C10","v":0},{"$f":"D9+D10","v":0},3,0,0,0,0,0,0,0,0,0,0,0,0,4,0,0,4,0,0,0,2,0,0,0,0,0,0,0,0]
["Admitidas ",10,null,null,2,null,null,null,null,null,null,null,null,null,null,null,null,4,null,null,2,null,null,null,2]
["Remisiones CNDH",3,null,null,1,null,null,null,null,null,null,null,null,null,null,null,null,null,null,null,2]
["Concluidas ",1,{"$f":"SUM(C12:C23)","v":0},{"$f":"SUM(D12:D23)","v":0},1,0,0,0,0,0,0,0,0,0,0,0,0,0,0,0,0,0,0,0,0,0,0,0,0,0,0,0,0]
["Incompetencia",1,null,null,1]
["Falta de interés ",0]
["Conciliación ",0]
["Acumulación ",0]
["No se acreditan los hechos ",0]
["Resueltas durante el procedimiento ",0]
["Desistimiento ",0]
["Sin materia ",0]
["Acuerdo de no responsabilidad ",0]
["No localizacion ",0]
["Hechos no violatorios ",0]
["Recomendaciones ",0]
["Trámite ",9,{"$f":"C9-C11","v":0},0,1,0,0,0,0,0,0,0,0,0,0,0,0,4,0,0,2,0,0,0,2,0,0,0,0,0,0,0,0]
["Voces de Violación"]
["Detencion arbitraria ",{"$f":"SUM(C26:AG26)","v":0}]
["Prest. Indeb. De Serv. Púb.",1,null,null,1]
["Trato cruel, Inhumano o dregradante ",0]
["Lesiones",0]
["Allanamiento ",0]
["Irregularidad en la Integ. De la averig. Previa Penal",0]
["Robo ",0]
["Ej. Inde. Fza. Púb.",0]
["Derecho a la Edución ",0]
["Amenazas ",0]
["Dilación en Proc. De Just.",0]
["Derecho a la Salud ",0]
["Falsas acusación ",0]
["Incump. Inadecuado de la negativa pública en mat. De procuración",0]
["Intimidación ",1,null,null,1]
["Derechos de los Niños ",0]
["Derecho de la Petición ",0]
["Desaparición Forzada ",0]
["Derecho a la Seguridad Jurídica",0]
["Discapacidad ",0]
["Discriminación ",0]
["Incomunicación ",0]
["D. menores a que se procesa su integridad ",0]
["Tortura ",0]
["Retención ilegal ",0]
["Otros ",1,null,null,1]
["Autoridades"]
["Policía Preventiva Municipal ",{"$f":"SUM(C53:AG53)","v":0}]
["PGJE ",0]
["SSP-CES",0]
["Secretaría de Edu.",0]
["Procuraduría de la Fam.",0]
["Secretaría de Salud",0]
["Dir. Reinserción Estatales  ",0]
["Otros Autoridades Estatales ",0]
["Otros Autoridades Municipales ",1,null,null,1]
["Grupo Vulnerable"]
["Mujer",{"$f":"SUM(C63:AG63)","v":0}]
["Hombre",1,null,null,1]
["Niños",0]
["Jóvenes",0]
["Adultos Mayores",0]
["Personas con discapacidad",0]
["Servidores Públicos",0]
["Migrantes",0]
["Preferencial Sexual Diferente",0]
["Indígenas",0]
["Interno",0]
["Defensor Civil de D.H",0]
["Periódista",0]

{"sheet":"Acu.","index":9,"n_rows":75,"n_cols":33,"rows_kept":75,"cut":false,"hidden":false,"merged":[[0,1,0,20],[61,0,61,32],[1,1,1,7],[2,1,2,7],[24,0,24,32],[51,0,51,32]]}
[null,"Comisión de los Derechos Humanos del Estado de Coahuila de Zaragoza "]
[null,"Visitaduría General "]
[null,"Estadística Diciembre 2013"]
[]
["Visitadurías Regionales ","Piedras Nedras",1,2,3,4,5,6,7,8,9,10,11,12,13,14,15,16,17,18,19,20,21,22,23,24,25,26,27,28,29,30,31]
["Asesorías ",{"$f":"SUM(C6:AG6)","v":0}]
["Gestorías ",{"$f":"SUM(C7:AG7)","v":0}]
["Quejas 2013",4,{"$f":"C9+C10","v":0},{"$f":"D9+D10","v":0},0,0,0,0,0,0,0,0,0,0,0,0,0,0,0,0,0,0,0,0,4,0,0,0,0,0,0,0,0]
["Admitidas ",4,null,null,null,null,null,null,null,null,null,null,null,null,null,null,null,null,null,null,null,null,null,null,4]
["Remisiones CNDH",0]
["Concluidas ",{"$f":"SUM(C11:AG11)","v":5},{"$f":"SUM(C12:C23)","v":0},{"$f":"SUM(D12:D23)","v":0},0,0,0,1,0,0,0,0,0,0,0,0,0,0,0,0,0,4,0,0,0,0,0,0,0,0,0,0,0]
["Incompetencia",{"$f":"SUM(C12:AG12)","v":0}]
["Falta de interés ",2,null,null,null,null,null,null,null,null,null,null,null,null,null,null,null,null,null,null,null,2]
["Conciliación ",0]
["Acumulación ",0]
["No se acreditan los hechos ",0]
["Resueltas durante el procedimiento ",2,null,null,null,null,null,1,null,null,null,null,null,null,null,null,null,null,null,null,null,1]
["Desistimiento ",1,null,null,null,null,null,null,null,null,null,null,null,null,null,null,null,null,null,null,null,1]
["Sin materia ",0]
["Acuerdo de no responsabilidad ",0]
["No localizacion ",0]
["Hechos no violatorios ",0]
["Recomendaciones ",0]
["Trámite ",-1,{"$f":"C9-C11","v":0},0,0,0,0,-1,0,0,0,0,0,0,0,0,0,0,0,0,0,-4,0,0,4,0,0,0,0,0,0,0,0]
["Voces de Violación"]
["Detencion arbitraria ",{"$f":"SUM(C26:AG26)","v":0}]
["Prest. Indeb. De Serv. Púb.",0]
["Trato cruel, Inhumano o dregradante ",0]
["Lesiones",0]
["Allanamiento ",0]
["Irregularidad en la Integ. De la averig. Previa Penal",0]
["Robo ",0]
["Ej. Inde. Fza. Púb.",0]
["Derecho a la Edución ",0]
["Amenazas ",0]
["Dilación en Proc. De Just.",0]
["Derecho a la Salud ",0]
["Falsas acusación ",0]
["Incump. Inadecuado de la negativa pública en mat. De procuración",0]
["Intimidación ",0]
["Derechos de los Niños ",0]
["Derecho de la Petición ",0]
["Desaparición Forzada ",0]
["Derecho a la Seguridad Jurídica",0]
["Discapacidad ",0]
["Discriminación ",0]
["Incomunicación ",0]
["D. menores a que se procesa su integridad ",0]
["Tortura ",0]
["Retención ilegal ",0]
["Otros ",0]
["Autoridades"]
["Policía Preventiva Municipal ",{"$f":"SUM(C53:AG53)","v":0}]
["PGJE ",0]
["SSP-CES",0]
["Secretaría de Edu.",0]
["Procuraduría de la Fam.",0]
["Secretaría de Salud",0]
["Dir. Reinserción Estatales  ",0]
["Otros Autoridades Estatales ",0]
["Otros Autoridades Municipales ",0]
["Grupo Vulnerable"]
["Mujer",{"$f":"SUM(C63:AG63)","v":0}]
["Hombre",0]
["Niños",0]
["Jóvenes",0]
["Adultos Mayores",0]
["Personas con discapacidad",0]
["Servidores Públicos",0]
["Migrantes",0]
["Preferencial Sexual Diferente",0]
["Indígenas",0]
["Interno",0]
["Defensor Civil de D.H",0]
["Periódista",0]

{"sheet":"Sab.","index":10,"n_rows":75,"n_cols":33,"rows_kept":75,"cut":false,"hidden":false,"merged":[[0,1,0,20],[61,0,61,32],[1,1,1,7],[2,1,2,7],[24,0,24,32],[51,0,51,32]]}
[null,"Comisión de los Derechos Humanos del Estado de Coahuila de Zaragoza "]
[null,"Visitaduría General "]
[null,"Estadística Diciembre 2013"]
[]
["Visitadurías Regionales ","Piedras Nedras",1,2,3,4,5,6,7,8,9,10,11,12,13,14,15,16,17,18,19,20,21,22,23,24,25,26,27,28,29,30,31]
["Asesorías ",{"$f":"SUM(C6:AG6)","v":0}]
["Gestorías ",0]
["Quejas 2013",7,{"$f":"C9+C10","v":0},{"$f":"D9+D10","v":0},0,0,0,0,0,0,0,0,0,0,0,0,0,4,0,0,0,0,0,0,3,0,0,0,0,0,0,0,0]
["Admitidas ",6,null,null,null,null,null,null,null,null,null,null,null,null,null,null,null,3,null,null,null,null,null,null,3]
["Remisiones CNDH",1,null,null,null,null,null,null,null,null,null,null,null,null,null,null,null,1]
["Concluidas ",1,{"$f":"SUM(C12:C23)","v":0},{"$f":"SUM(D12:D23)","v":0},0,0,0,0,0,0,0,0,0,0,0,0,0,1,0,0,0,0,0,0,0,0,0,0,0,0,0,0,0]
["Incompetencia",1,null,null,null,null,null,null,null,null,null,null,null,null,null,null,null,1]
["Falta de interés ",0]
["Conciliación ",0]
["Acumulación ",0]
["No se acreditan los hechos ",0]
["Resueltas durante el procedimiento ",0]
["Desistimiento ",0]
["Sin materia ",0]
["Acuerdo de no responsabilidad ",0]
["No localizacion ",0]
["Hechos no violatorios ",0]
["Recomendaciones ",0]
["Trámite ",5,{"$f":"C9-C11","v":0},0,0,0,0,0,0,0,0,0,0,0,0,0,0,2,0,0,0,0,0,0,3,0,0,0,0,0,0,0,0]
["Voces de Violación"]
["Detencion arbitraria ",{"$f":"SUM(C26:AG26)","v":0}]
["Prest. Indeb. De Serv. Púb.",0]
["Trato cruel, Inhumano o dregradante ",2,null,null,null,null,null,null,null,null,null,null,null,null,null,null,null,2]
["Lesiones",0]
["Allanamiento ",0]
["Irreg. Inter. A.P.P.",0]
["Robo ",0]
["Ej. Inde. Fza. Púb.",0]
["Derecho a la Edución ",1,null,null,null,null,null,null,null,null,null,null,null,null,null,null,null,1]
["Amenazas ",0]
["Dilación en Proc. De Just.",2,null,null,null,null,null,null,null,null,null,null,null,null,null,null,null,2]
["Derecho a la Salud ",0]
["Falsas acusación ",0]
["Incump. i/n pub. Mat. De procuración ",0]
["Intimidación ",0]
["Derechos de los Niños ",0]
["Derecho de la Petición ",0]
["Desaparición Forzada ",0]
["Derecho a la Seguridad Jurídica",0]
["Discapacidad ",0]
["Discriminación ",0]
["Incomunicación ",0]
["D. menores a que se procesa su integridad ",0]
["Tortura ",0]
["Retención ilegal ",0]
["Otros ",2,null,null,null,null,null,null,null,null,null,null,null,null,null,null,null,2]
["Autoridades"]
["Policía Preventiva Municipal ",{"$f":"SUM(C53:AG53)","v":0}]
["PGJE ",0]
["SSP-CES",0]
["Secretaría de Edu.",1,null,null,null,null,null,null,null,null,null,null,null,null,null,null,null,1]
["Procuraduría de la Fam.",0]
["Secretaría de Salud",0]
["Dir. Reinserción Estatales  ",0]
["Otros Autoridades Estatales ",0]
["Otros Autoridades Municipales ",2,null,null,null,null,null,null,null,null,null,null,null,null,null,null,null,2]
["Grupo Vulnerable"]
["Mujer",{"$f":"SUM(C63:AG63)","v":0}]
["Hombre",0]
["Niños",1,null,null,null,null,null,null,null,null,null,null,null,null,null,null,null,1]
["Jóvenes",2,null,null,null,null,null,null,null,null,null,null,null,null,null,null,null,2]
["Adultos Mayores",0]
["Personas con discapacidad",0]
["Servidores Públicos",0]
["Migrantes",0]
["Preferencial Sexual Diferente",0]
["Indígenas",0]
["Interno",0]
["Defensor Civil de D.H",0]
["Periódista",0]

{"sheet":"Solicitudes de Inter.","index":11,"n_rows":8,"n_cols":8,"rows_kept":8,"cut":false,"hidden":false,"merged":[[0,1,0,7],[1,1,1,7],[2,1,2,7]]}
[null,"Comisión de los Derechos Humanos del Estado de Coahuila de Zaragoza "]
[null,"Visitaduría General "]
[null,"Estadística Enero - Octubre 2013"]
[]
["Solicitudes de Intervención ","Saltillo ","Torreón ","Piedras Negras ","Monclova ","Acuña ","Sabinas ","TOTAL "]
["Asesorías ",84,122,81,78,0,3,{"$f":"SUM(B6:G6)","v":368}]
["Gestorías ",0,0,0,0,0,0,0]
["Quejas 2013"]

{"sheet":"Hoja1","index":12,"n_rows":18,"n_cols":5,"rows_kept":18,"cut":false,"hidden":false,"merged":[[6,0,7,0]]}
[27,null,30,15,13]
[3,null,117,271,165]
[11,null,72,64,40]
[10,null,25,35,39]
[0,null,202,29,10]
[81,null,210,152,86]
[3,null,98,111,33]
[null,null,11,10,8]
[2,null,6,0,0]
[52,null,17,34,22]
[4,null,0,1,0]
[3,null,0,9,19]
[{"$f":"SUM(A1:A12)","v":196},null,0,2,9]
[null,null,0,42,39]
[null,null,10,3,0]
[null,null,0,134,79]
[null,null,31,{"$f":"SUM(D1:D16)","v":912},{"$f":"SUM(E1:E16)","v":562}]
[null,null,{"$f":"SUM(C1:C17)","v":829}]